fUST/lending_fUST_20250611
["ID","MTS","AMOUNT","RATE_DAILY","PERIOD"]
[365279626,1749575439160,-160.0,0.00021095,4]
[365279627,1749575439172,-460.0,0.00021095,4]
[365279628,1749575439183,-842.84,0.00021095,4]
[365279629,1749575439194,-460.0,0.00021095,4]
[365279630,1749575439205,-1309.27,0.00021095,4]
[365279631,1749575439217,-460.0,0.00021095,4]
[365279632,1749575439229,-460.0,0.00021095,4]
[365279633,1749575439241,-460.0,0.00021095,4]
[365279634,1749575439252,-963.4,0.00021095,4]
[365279635,1749575439264,-460.0,0.00021095,4]
[365279636,1749575439275,-460.0,0.00021095,4]
[365279637,1749575439287,-460.0,0.00021095,4]
[365279638,1749575439300,-460.0,0.00021095,4]
[365279639,1749575439312,-460.0,0.00021095,4]
[365279640,1749575439324,-460.0,0.00021095,4]
[365279641,1749575439335,-460.0,0.00021095,4]
[365279642,1749575439347,-663.84,0.00021095,4]
[365279643,1749575439358,-460.0,0.00021095,4]
[365279644,1749575439369,-460.0,0.00021095,4]
[365279645,1749575439380,-628.26432575,0.000213,2]
[365279646,1749575439391,-859.54,0.00021359,3]
[365279647,1749575439403,-460.0,0.00021369,4]
[365279648,1749575439414,-460.0,0.00021369,4]
[365279649,1749575439425,-172.2737234,0.00021369,4]
[365279650,1749575439437,-430.0,0.00021369,4]
[365279651,1749575439448,-460.0,0.00021369,4]
[365279652,1749575439459,-260.0,0.00021369,4]
[365279653,1749575439470,-340.0,0.00021369,4]
[365279654,1749575439480,-460.0,0.00021369,4]
[365279655,1749575439490,-460.0,0.00021369,4]
[365279656,1749575439501,-460.0,0.00021369,4]
[365279657,1749575439512,-460.0,0.00021369,4]
[365279658,1749575439524,-330.0,0.00021369,4]
[365279659,1749575439535,-330.0,0.00021369,4]
[365279660,1749575439548,-460.0,0.00021369,4]
[365279661,1749575439559,-460.0,0.00021369,4]
[365279662,1749575439571,-460.0,0.00021369,4]
[365279663,1749575439582,-336.82939588,0.00021369,4]
[365279664,1749575439594,-460.0,0.00021369,4]
[365279665,1749575439605,-460.0,0.00021369,4]
[365279666,1749575439616,-400.0,0.00021369,4]
[365279667,1749575439628,-294.48293153,0.00021369,4]
[365279668,1749575439639,-460.0,0.00021369,4]
[365279669,1749575439651,-460.0,0.00021369,4]
[365279670,1749575439664,-460.0,0.00021369,4]
[365279671,1749575439676,-460.0,0.00021369,4]
[365279672,1749575439688,-460.0,0.00021369,4]
[365279673,1749575439700,-460.0,0.00021369,4]
[365279674,1749575439711,-512.15,0.00021369,4]
[365279675,1749575439722,-460.0,0.00021369,4]
[365279676,1749575439732,-460.0,0.00021369,4]
[365279677,1749575439742,-558.61,0.00021369,4]
[365279678,1749575439753,-460.0,0.00021369,4]
[365279679,1749575439763,-460.0,0.00021369,4]
[365279680,1749575439773,-460.0,0.00021369,4]
[365279681,1749575439783,-460.0,0.00021369,4]
[365279682,1749575439795,-460.0,0.00021369,4]
[365279683,1749575439807,-460.0,0.00021369,4]
[365279684,1749575439820,-460.0,0.00021369,4]
[365279685,1749575439831,-460.0,0.00021369,4]
[365279686,1749575439843,-460.0,0.00021369,4]
[365279687,1749575439854,-460.0,0.00021369,4]
[365279688,1749575439875,-460.0,0.00021369,4]
[365279689,1749575439886,-460.0,0.00021369,4]
[365279690,1749575439900,-668.71,0.00021369,4]
[365279692,1749575439912,-524.59,0.00021369,4]
[365279693,1749575439924,-460.0,0.00021369,4]
[365279694,1749575439936,-460.0,0.00021369,4]
[365279695,1749575439950,-942.26,0.00021369,4]
[365279696,1749575439964,-1611.82,0.00021369,4]
[365279697,1749575439976,-460.0,0.00021369,4]
[365279698,1749575439987,-420.0,0.00021369,4]
[365279699,1749575439997,-460.0,0.00021369,4]
[365279700,1749575440009,-420.0,0.00021369,4]
[365279701,1749575440019,-460.0,0.00021369,4]
[365279702,1749575440029,-530.14,0.00021369,4]
[365279703,1749575440040,-636.29,0.00021369,4]
[365279704,1749575440051,-460.0,0.00021369,4]
[365279705,1749575440063,-460.0,0.00021369,4]
[365279706,1749575440077,-460.0,0.00021369,4]
[365279707,1749575440090,-460.0,0.00021369,4]
[365279708,1749575440101,-526.18812099,0.00021369,4]
[365279709,1749575440113,-416.23498753,0.00021369,4]
[365279710,1749575440125,-460.0,0.00021369,4]
[365279711,1749575440136,-460.0,0.00021369,2]
[365279712,1749575440150,-460.0,0.00021369,4]
[365279713,1749575440161,-460.0,0.00021369,4]
[365279714,1749575440173,-430.0,0.00021369,4]
[365279715,1749575440184,-460.0,0.00021369,4]
[365279716,1749575440195,-460.0,0.00021369,4]
[365279717,1749575440206,-460.0,0.00021369,4]
[365279718,1749575440217,-280.6867807,0.00021369,4]
[365279719,1749575440228,-1018.16,0.00021369,4]
[365279720,1749575440239,-502.15,0.00021369,4]
[365279721,1749575440250,-1072.99,0.00021369,4]
[365279722,1749575440260,-247.08012644,0.00021369,4]
[365279723,1749575440271,-1214.31,0.00021369,4]
[365279724,1749575440282,-400.0,0.00021369,4]
[365279725,1749575440293,-460.0,0.00021369,4]
[365279726,1749575440304,-460.0,0.00021369,4]
[365279727,1749575440315,-460.0,0.00021369,4]
[365279728,1749575440326,-1387.6,0.00021369,4]
[365279729,1749575440337,-460.0,0.00021369,4]
[365279730,1749575440347,-410.0,0.00021369,4]
[365279731,1749575440358,-460.0,0.00021369,4]
[365279732,1749575440369,-460.0,0.00021369,4]
[365279733,1749575440380,-842.84,0.00021369,4]
[365279734,1749575440390,-460.0,0.00021369,4]
[365279735,1749575440401,-1309.27,0.00021369,4]
[365279736,1749575440412,-460.0,0.00021369,4]
[365279737,1749575440423,-460.0,0.00021369,4]
[365279738,1749575440434,-460.0,0.00021369,4]
[365279739,1749575440445,-963.4,0.00021369,4]
[365279740,1749575440456,-460.0,0.00021369,4]
[365279741,1749575440467,-460.0,0.00021369,4]
[365279742,1749575440477,-460.0,0.00021369,4]
[365279743,1749575440488,-460.0,0.00021369,4]
[365279744,1749575440498,-460.0,0.00021369,4]
[365279745,1749575440509,-460.0,0.00021369,4]
[365279746,1749575440520,-290.0,0.00021369,4]
[365279747,1749575440531,-663.84,0.00021369,4]
[365279748,1749575440542,-460.0,0.00021369,4]
[365279749,1749575440552,-460.0,0.00021369,4]
[365279750,1749575440563,-500.0,0.000214,2]
[365279751,1749575440573,-267.74381626,0.000214,2]
[365279752,1749575440583,-690.02,0.00021419,2]
[365279753,1749575440593,-500.0,0.00021621,2]
[365279754,1749575440604,-460.0,0.00021643,4]
[365279755,1749575440614,-350.0,0.00021643,4]
[365279756,1749575440625,-460.0,0.00021643,4]
[365279757,1749575440637,-460.0,0.00021643,4]
[365279758,1749575440647,-210.0,0.00021643,4]
[365279759,1749575440658,-460.0,0.00021643,4]
[365279760,1749575440668,-460.0,0.00021643,4]
[365279761,1749575440679,-400.0,0.00021643,4]
[365279762,1749575440689,-460.0,0.00021643,4]
[365279763,1749575440700,-460.0,0.00021643,4]
[365279764,1749575440711,-460.0,0.00021643,4]
[365279766,1749575440888,-460.0,0.00021643,4]
[365279767,1749575440902,-460.0,0.00021643,4]
[365279768,1749575440912,-411.55892203,0.00021643,4]
[365279769,1749575440922,-460.0,0.00021643,4]
[365279770,1749575440932,-460.0,0.00021643,4]
[365279771,1749575440942,-460.0,0.00021643,4]
[365279772,1749575440952,-460.0,0.00021643,4]
[365279773,1749575440961,-512.15,0.00021643,4]
[365279774,1749575440972,-460.0,0.00021643,4]
[365279775,1749575440982,-558.61,0.00021643,4]
[365279776,1749575440991,-410.0,0.00021643,4]
[365279777,1749575441001,-460.0,0.00021643,4]
[365279778,1749575441011,-430.0,0.00021643,4]
[365279779,1749575441021,-460.0,0.00021643,4]
[365279780,1749575441030,-500.0,0.00021643,4]
[365279781,1749575441039,-330.0,0.00021643,4]
[365279782,1749575441049,-460.0,0.00021643,4]
[365279783,1749575441058,-237.34272,0.00021643,4]
[365279784,1749575441068,-460.0,0.00021643,4]
[365279785,1749575441080,-320.0,0.00021643,4]
[365279786,1749575441090,-460.0,0.00021643,4]
[365279787,1749575441099,-460.0,0.00021643,4]
[365279788,1749575441109,-668.71,0.00021643,4]
[365279789,1749575441119,-524.59,0.00021643,4]
[365279790,1749575441129,-487.82904102,0.00021643,4]
[365279791,1749575441138,-460.0,0.00021643,4]
[365279792,1749575441148,-942.26,0.00021643,4]
[365279793,1749575441159,-1611.82,0.00021643,4]
[365279794,1749575441169,-460.0,0.00021643,4]
[365279795,1749575441179,-420.0,0.00021643,4]
[365279796,1749575441188,-460.0,0.00021643,4]
[365279797,1749575441197,-530.14,0.00021643,4]
[365279798,1749575441207,-636.29,0.00021643,4]
[365279799,1749575441222,-460.0,0.00021643,4]
[365279800,1749575441232,-460.0,0.00021643,4]
[365279801,1749575441241,-460.0,0.00021643,4]
[365279802,1749575441250,-176.06,0.00021643,4]
[365279803,1749575441260,-460.0,0.00021643,2]
[365279804,1749575441269,-460.0,0.00021643,4]
[365279805,1749575441279,-460.0,0.00021643,4]
[365279806,1749575441288,-460.0,0.00021643,4]
[365279807,1749575441298,-420.0,0.00021643,4]
[365279808,1749575441307,-460.0,0.00021643,4]
[365279809,1749575441316,-1018.16,0.00021643,4]
[365279810,1749575441325,-502.15,0.00021643,4]
[365279811,1749575441335,-1072.99,0.00021643,4]
[365279812,1749575441348,-1214.31,0.00021643,4]
[365279813,1749575441358,-460.0,0.00021643,4]
[365279814,1749575441367,-460.0,0.00021643,4]
[365279815,1749575441376,-1387.6,0.00021643,4]
[365279816,1749575441386,-460.0,0.00021643,4]
[365279817,1749575441395,-460.0,0.00021643,4]
[365279818,1749575441405,-460.0,0.00021643,4]
[365279819,1749575441415,-842.84,0.00021643,4]
[365279820,1749575441424,-460.0,0.00021643,4]
[365279821,1749575441434,-1309.27,0.00021643,4]
[365279822,1749575441443,-460.0,0.00021643,4]
[365279823,1749575441452,-460.0,0.00021643,4]
[365279824,1749575441462,-963.4,0.00021643,4]
[365279825,1749575441472,-329.75,0.00021643,4]
[365279826,1749575441482,-430.0,0.00021643,4]
[365279827,1749575441491,-370.0,0.00021643,4]
[365279828,1749575441500,-460.0,0.00021643,4]
[365279829,1749575441509,-460.0,0.00021643,4]
[365279830,1749575441519,-430.0,0.00021643,4]
[365279831,1749575441529,-663.84,0.00021643,4]
[365279832,1749575441539,-600.70948469,0.00021643,4]
[365279833,1749575441548,-460.0,0.00021643,4]
[365279834,1749575441557,-1332.43,0.000217,2]
[365279835,1749575441566,-420.0,0.00021825,2]
[365279836,1749575441576,-17378.40415991,0.000219,2]
[365279837,1749575441586,-326.05242768,0.000219,6]
[365279838,1749575441595,-460.0,0.00021917,4]
[365279839,1749575441604,-400.0,0.00021917,4]
[365279840,1749575441614,-380.0,0.00021917,4]
[365279841,1749575441623,-460.0,0.00021917,4]
[365279842,1749575441632,-460.0,0.00021917,4]
[365279843,1749575441641,-460.0,0.00021917,4]
[365279844,1749575441650,-505.29982678,0.00021917,2]
[365279845,1749575441660,-430.0,0.00021917,4]
[365279846,1749575441669,-460.0,0.00021917,4]
[365279847,1749575441679,-460.0,0.00021917,4]
[365279848,1749575441688,-380.0,0.00021917,4]
[365279849,1749575441698,-460.0,0.00021917,4]
[365279850,1749575441708,-460.0,0.00021917,4]
[365279851,1749575441718,-460.0,0.00021917,4]
[365279852,1749575441727,-460.0,0.00021917,4]
[365279853,1749575441737,-512.15,0.00021917,4]
[365279854,1749575441746,-460.0,0.00021917,4]
[365279855,1749575441755,-558.61,0.00021917,4]
[365279856,1749575441766,-460.0,0.00021917,4]
[365279857,1749575441776,-460.0,0.00021917,4]
[365279858,1749575441785,-460.0,0.00021917,4]
[365279859,1749575441794,-460.0,0.00021917,4]
[365279860,1749575441803,-380.0,0.00021917,4]
[365279861,1749575441813,-460.0,0.00021917,4]
[365279862,1749575441822,-668.71,0.00021917,4]
[365279863,1749575441832,-524.59,0.00021917,4]
[365279864,1749575441841,-460.0,0.00021917,4]
[365279865,1749575441851,-942.26,0.00021917,4]
[365279866,1749575441861,-1611.82,0.00021917,4]
[365279867,1749575441871,-460.0,0.00021917,4]
[365279868,1749575441880,-460.0,0.00021917,4]
[365279869,1749575441890,-530.14,0.00021917,4]
[365279870,1749575441899,-636.29,0.00021917,4]
[365279871,1749575441908,-460.0,0.00021917,4]
[365279872,1749575441918,-460.0,0.00021917,4]
[365279873,1749575441928,-400.0,0.00021917,4]
[365279874,1749575441937,-460.0,0.00021917,2]
[365279875,1749575441947,-460.0,0.00021917,4]
[365279876,1749575441956,-460.0,0.00021917,4]
[365279877,1749575441966,-460.0,0.00021917,4]
[365279878,1749575441976,-460.0,0.00021917,4]
[365279879,1749575441985,-1018.16,0.00021917,4]
[365279880,1749575441995,-502.15,0.00021917,4]
[365279881,1749575442004,-1072.99,0.00021917,4]
[365279882,1749575442013,-1214.31,0.00021917,4]
[365279883,1749575442023,-460.0,0.00021917,4]
[365279884,1749575442032,-460.0,0.00021917,4]
[365279885,1749575442042,-1387.6,0.00021917,4]
[365279886,1749575442051,-460.0,0.00021917,4]
[365279887,1749575442061,-460.0,0.00021917,4]
[365279888,1749575442070,-460.0,0.00021917,4]
[365279889,1749575442082,-842.84,0.00021917,4]
[365279890,1749575442091,-460.0,0.00021917,4]
[365279891,1749575442100,-1309.27,0.00021917,4]
[365279892,1749575442110,-460.0,0.00021917,4]
[365279893,1749575442121,-460.0,0.00021917,4]
[365279894,1749575442130,-963.4,0.00021917,4]
[365279895,1749575442140,-460.0,0.00021917,4]
[365279896,1749575442150,-460.0,0.00021917,4]
[365279897,1749575442161,-663.84,0.00021917,4]
[365279898,1749575442171,-460.0,0.00021917,4]
[365279899,1749575442181,-988.0483064,0.00021918,7]
[365279900,1749575442190,-1000.0,0.00021948,2]
[365279901,1749575442199,-64374.06,0.00022,7]
[365279902,1749575442210,-842.5625,0.00022,7]
[365279903,1749575442221,-326.05242744,0.00022003,6]
[365279904,1749575442230,-500.0,0.00022054,2]
[365279905,1749575442239,-628.26432575,0.00022072,2]
[365279906,1749575442248,-326.05242744,0.00022107,6]
[365279907,1749575442258,-396.252502,0.00022191,4]
[365279908,1749575442270,-460.0,0.00022191,4]
[365279909,1749575442279,-400.0,0.00022191,4]
[365279910,1749575442289,-460.0,0.00022191,4]
[365279911,1749575442298,-460.0,0.00022191,4]
[365279912,1749575442307,-460.0,0.00022191,4]
[365279913,1749575442317,-410.0,0.00022191,4]
[365279914,1749575442327,-460.0,0.00022191,4]
[365279915,1749575442337,-400.0,0.00022191,4]
[365279916,1749575442347,-460.0,0.00022191,4]
[365279917,1749575442356,-512.15,0.00022191,4]
[365279918,1749575442366,-460.0,0.00022191,4]
[365279919,1749575442375,-558.61,0.00022191,4]
[365279920,1749575442385,-186.27922572,0.00022191,4]
[365279921,1749575442395,-460.0,0.00022191,4]
[365279922,1749575442404,-460.0,0.00022191,4]
[365279923,1749575442413,-460.0,0.00022191,4]
[365279924,1749575442423,-460.0,0.00022191,4]
[365279925,1749575442432,-668.71,0.00022191,4]
[365279926,1749575442442,-524.59,0.00022191,4]
[365279927,1749575442451,-460.0,0.00022191,4]
[365279928,1749575442461,-942.26,0.00022191,4]
[365279929,1749575442471,-1611.82,0.00022191,4]
[365279930,1749575442480,-460.0,0.00022191,4]
[365279931,1749575442489,-280.0,0.00022191,4]
[365279932,1749575442499,-530.14,0.00022191,4]
[365279933,1749575442509,-636.29,0.00022191,4]
[365279934,1749575442518,-460.0,0.00022191,4]
[365279935,1749575442528,-460.0,0.00022191,4]
[365279936,1749575442538,-460.0,0.00022191,2]
[365279937,1749575442548,-558.88946386,0.00022191,4]
[365279938,1749575442558,-460.0,0.00022191,4]
[365279939,1749575442568,-523.05286985,0.00022191,4]
[365279940,1749575442578,-460.0,0.00022191,4]
[365279941,1749575442587,-1018.16,0.00022191,4]
[365279942,1749575442597,-502.15,0.00022191,4]
[365279943,1749575442606,-1072.99,0.00022191,4]
[365279944,1749575442616,-1214.31,0.00022191,4]
[365279945,1749575442626,-460.0,0.00022191,4]
[365279946,1749575442635,-460.0,0.00022191,4]
[365279947,1749575442646,-1387.6,0.00022191,4]
[365279948,1749575442655,-460.0,0.00022191,4]
[365279949,1749575442664,-460.0,0.00022191,4]
[365279950,1749575442674,-460.0,0.00022191,4]
[365279951,1749575442684,-842.84,0.00022191,4]
[365279952,1749575442693,-460.0,0.00022191,4]
[365279953,1749575442703,-1309.27,0.00022191,4]
[365279954,1749575442713,-460.0,0.00022191,4]
[365279955,1749575442727,-460.0,0.00022191,4]
[365279957,1749575442740,-963.4,0.00022191,4]
[365279959,1749575442750,-460.0,0.00022191,4]
[365279960,1749575442765,-460.0,0.00022191,4]
[365279961,1749575442776,-663.84,0.00022191,4]
[365279962,1749575442786,-460.0,0.00022191,4]
[365279963,1749575442796,-375.25,0.000222,7]
[365279964,1749575442806,-326.05242744,0.0002221,6]
[365279965,1749575442815,-326.05242744,0.00022314,7]
[365279966,1749575442825,-176.703382,0.0002232,4]
[365279967,1749575442835,-326.05242744,0.00022417,7]
[365279968,1749575442845,-213.1263252,0.00022444,2]
[365279969,1749575442854,-842.5625,0.00022444,2]
[365279970,1749575442864,-160.0,0.00022444,2]
[365279971,1749575442873,-424.12530924,0.00022444,2]
[365279972,1749575442882,-229.6792923,0.00022444,2]
[365279973,1749575442892,-834.9046531,0.00022454,2]
[365279974,1749575442901,-400.0,0.00022465,4]
[365279975,1749575442911,-400.0,0.00022465,4]
[365279976,1749575442920,-400.0,0.00022465,4]
[365279977,1749575442930,-333.64135818,0.00022465,4]
[365279978,1749575442940,-413.32,0.00022465,4]
[365279979,1749575442950,-380.0,0.00022465,4]
[365279980,1749575442960,-460.0,0.00022465,4]
[365279982,1749575442970,-547.7138273,0.00022465,4]
[365279984,1749575442980,-460.0,0.00022465,4]
[365279985,1749575442990,-460.0,0.00022465,4]
[365279986,1749575443000,-512.15,0.00022465,4]
[365279987,1749575443009,-460.0,0.00022465,4]
[365279988,1749575443018,-558.61,0.00022465,4]
[365279989,1749575443028,-460.0,0.00022465,4]
[365279990,1749575443037,-460.0,0.00022465,4]
[365279991,1749575443047,-460.0,0.00022465,4]
[365279992,1749575443056,-460.0,0.00022465,4]
[365279993,1749575443066,-668.71,0.00022465,4]
[365279994,1749575443080,-524.59,0.00022465,4]
[365279995,1749575443091,-460.0,0.00022465,4]
[365279996,1749575443101,-942.26,0.00022465,4]
[365279997,1749575443111,-1611.82,0.00022465,4]
[365279998,1749575443121,-460.0,0.00022465,4]
[365279999,1749575443131,-530.14,0.00022465,4]
[365280000,1749575443140,-636.29,0.00022465,4]
[365280001,1749575443150,-460.0,0.00022465,4]
[365280002,1749575443161,-460.0,0.00022465,4]
[365280003,1749575443170,-460.0,0.00022465,2]
[365280004,1749575443180,-460.0,0.00022465,4]
[365280005,1749575443189,-420.0,0.00022465,4]
[365280006,1749575443199,-1018.16,0.00022465,4]
[365280007,1749575443208,-502.15,0.00022465,4]
[365280008,1749575443218,-1072.99,0.00022465,4]
[365280009,1749575443227,-1214.31,0.00022465,4]
[365280010,1749575443237,-460.0,0.00022465,4]
[365280011,1749575443246,-460.0,0.00022465,4]
[365280012,1749575443256,-1387.6,0.00022465,4]
[365280013,1749575443265,-460.0,0.00022465,4]
[365280014,1749575443275,-460.0,0.00022465,4]
[365280015,1749575443284,-460.0,0.00022465,4]
[365280016,1749575443294,-842.84,0.00022465,4]
[365280017,1749575443303,-1309.27,0.00022465,4]
[365280018,1749575443313,-460.0,0.00022465,4]
[365280019,1749575443322,-460.0,0.00022465,4]
[365280020,1749575443332,-963.4,0.00022465,4]
[365280021,1749575443342,-460.0,0.00022465,4]
[365280022,1749575443352,-460.0,0.00022465,4]
[365280023,1749575443361,-663.84,0.00022465,4]
[365280024,1749575443371,-460.0,0.00022465,4]
[365280025,1749575443381,-326.05242744,0.00022521,7]
[365280026,1749575443390,-326.05242744,0.00022624,7]
[365280027,1749575443400,-3000.0,0.000227,2]
[365280028,1749575443409,-3000.0,0.0002271,2]
[365280029,1749575443419,-3000.0,0.0002272,2]
[365280030,1749575443428,-326.05242744,0.00022728,7]
[365280031,1749575443438,-3000.0,0.0002273,2]
[365280032,1749575443448,-460.0,0.00022739,4]
[365280033,1749575443458,-460.0,0.00022739,4]
[365280034,1749575443467,-512.15,0.00022739,4]
[365280035,1749575443477,-460.0,0.00022739,4]
[365280036,1749575443486,-558.61,0.00022739,4]
[365280037,1749575443496,-460.0,0.00022739,4]
[365280038,1749575443505,-480.0,0.00022739,4]
[365280039,1749575443515,-460.0,0.00022739,4]
[365280040,1749575443526,-519.85,0.00022739,4]
[365280041,1749575443535,-668.71,0.00022739,4]
[365280042,1749575443548,-524.59,0.00022739,4]
[365280043,1749575443558,-460.0,0.00022739,4]
[365280044,1749575443567,-942.26,0.00022739,4]
[365280045,1749575443577,-1611.82,0.00022739,4]
[365280046,1749575443586,-460.0,0.00022739,4]
[365280047,1749575443596,-530.14,0.00022739,4]
[365280048,1749575443606,-636.29,0.00022739,4]
[365280049,1749575443615,-460.0,0.00022739,4]
[365280050,1749575443625,-460.0,0.00022739,4]
[365280051,1749575443635,-460.0,0.00022739,2]
[365280052,1749575443645,-457.69251106,0.00022739,4]
[365280053,1749575443655,-1018.16,0.00022739,4]
[365280054,1749575443665,-502.15,0.00022739,4]
[365280055,1749575443674,-1072.99,0.00022739,4]
[365280056,1749575443683,-1214.31,0.00022739,4]
[365280057,1749575443693,-340.0,0.00022739,4]
[365280058,1749575443703,-460.0,0.00022739,4]
[365280059,1749575443712,-1387.6,0.00022739,4]
[365280060,1749575443722,-460.0,0.00022739,4]
[365280061,1749575443731,-460.0,0.00022739,4]
[365280062,1749575443740,-460.0,0.00022739,4]
[365280063,1749575443750,-842.84,0.00022739,4]
[365280064,1749575443760,-1309.27,0.00022739,4]
[365280065,1749575443770,-460.0,0.00022739,4]
[365280066,1749575443779,-460.0,0.00022739,4]
[365280067,1749575443789,-963.4,0.00022739,4]
[365280068,1749575443799,-460.0,0.00022739,4]
[365280069,1749575443810,-460.0,0.00022739,4]
[365280070,1749575443820,-663.84,0.00022739,4]
[365280071,1749575443830,-460.0,0.00022739,4]
[365280072,1749575443840,-3000.0,0.0002274,2]
[365280073,1749575443850,-3000.0,0.0002275,2]
[365280074,1749575443859,-3000.0,0.0002276,2]
[365280075,1749575443869,-3000.0,0.0002277,2]
[365280076,1749575443879,-3000.0,0.0002278,2]
[365280077,1749575443888,-3257.240158,0.0002279,2]
[365280078,1749575443898,-326.05242744,0.00022831,8]
[365280079,1749575443907,-628.26432575,0.00022843,2]
[365280080,1749575443918,-364.9974737,0.00022932,2]
[365280081,1749575443928,-326.05242744,0.00022934,8]
[365280082,1749575443938,-500.0,0.00022973,2]
[365280083,1749575443948,-500.0,0.00022999,2]
[365280084,1749575444069,-1430.108915,0.00022999,2]
[365280085,1749575444083,-1430.108915,0.00022999,2]
[365280086,1749575444093,-500.0,0.00022999,2]
[365280087,1749575444102,-1430.108915,0.00022999,2]
[365280088,1749575444113,-1430.108915,0.00022999,2]
[365280089,1749575444124,-1430.108915,0.00022999,2]
[365280090,1749575444135,-1430.108915,0.00022999,2]
[365280091,1749575444146,-493.9091556,0.00022999,2]
[365280092,1749575444157,-1430.108915,0.00022999,2]
[365280093,1749575444167,-1430.108915,0.00022999,2]
[365280094,1749575444178,-1430.108915,0.00022999,2]
[365280095,1749575444188,-1430.108915,0.00022999,2]
[365280096,1749575444197,-1430.108915,0.00022999,2]
[365280097,1749575444207,-1430.108915,0.00022999,2]
[365280098,1749575444216,-1430.108915,0.00022999,2]
[365280099,1749575444226,-1430.108915,0.00022999,2]
[365280100,1749575444236,-1430.108915,0.00022999,2]
[365280101,1749575444246,-1430.108915,0.00022999,2]
[365280102,1749575444255,-1430.108915,0.00022999,2]
[365280103,1749575444264,-1430.108915,0.00022999,2]
[365280104,1749575444274,-59938.91352897,0.00023,2]
[365280105,1749575444284,-1332.43,0.00023,7]
[365280106,1749575444294,-260.0,0.00023013,4]
[365280107,1749575444304,-460.0,0.00023013,4]
[365280108,1749575444314,-512.15,0.00023013,4]
[365280109,1749575444324,-460.0,0.00023013,4]
[365280110,1749575444334,-558.61,0.00023013,4]
[365280111,1749575444343,-460.0,0.00023013,4]
[365280112,1749575444353,-163.04,0.00023013,4]
[365280113,1749575444364,-668.71,0.00023013,4]
[365280114,1749575444373,-524.59,0.00023013,4]
[365280115,1749575444383,-460.0,0.00023013,4]
[365280116,1749575444392,-942.26,0.00023013,4]
[365280117,1749575444401,-1611.82,0.00023013,4]
[365280118,1749575444411,-460.0,0.00023013,4]
[365280119,1749575444421,-530.14,0.00023013,4]
[365280120,1749575444437,-636.29,0.00023013,4]
[365280121,1749575444456,-460.0,0.00023013,4]
[365280122,1749575444466,-460.0,0.00023013,4]
[365280123,1749575444476,-460.0,0.00023013,2]
[365280124,1749575444486,-1018.16,0.00023013,4]
[365280125,1749575444495,-502.15,0.00023013,4]
[365280126,1749575444504,-1072.99,0.00023013,4]
[365280127,1749575444515,-1214.31,0.00023013,4]
[365280128,1749575444525,-460.0,0.00023013,4]
[365280129,1749575444534,-1387.6,0.00023013,4]
[365280130,1749575444544,-290.90073203,0.00023013,4]
[365280131,1749575444553,-460.0,0.00023013,4]